bitfinex-derivatives/quotes_BTCF0:USTF0_20240907
["timestamp","ask_amount","ask_price","bid_price","bid_amount"]
[1725738906184,1.3406,54488.0,54487.0,0.001]
[1725738906387,1.3406,54488.0,54477.0,0.1605]
[1725738906388,1.3506,54488.0,54470.0,0.091797]
[1725738906590,0.19,54478.0,54470.0,0.091797]
[1725738906807,0.280784,54478.0,54462.0,0.0938]
[1725738906990,0.280784,54478.0,54470.0,0.19]
[1725738907198,0.280784,54478.0,54466.0,0.19]
[1725738907394,0.091791,54474.0,54462.0,0.2838]
[1725738907704,0.19,54470.0,54462.0,0.2838]
[1725738907998,0.182,54470.0,54462.0,0.2838]
[1725738908200,0.281793,54473.0,54462.0,0.2838]
[1725738908399,0.281793,54473.0,54468.0,0.091801]
[1725738909706,0.284793,54473.0,54468.0,0.091801]
[1725738910091,0.287793,54473.0,54468.0,0.091801]
[1725738910497,0.287793,54473.0,54466.0,0.091804]
[1725738910498,0.19,54470.0,54466.0,0.091804]
[1725738910700,0.091795,54472.0,54466.0,0.091804]
[1725738911493,0.003,54473.0,54466.0,0.091804]
[1725738911692,0.19,54467.0,54462.0,0.091811]
[1725738912800,0.19,54463.0,54454.0,0.0468]
[1725738913010,0.091817,54459.0,54449.0,0.24455359]
[1725738913202,0.19,54460.0,54449.0,0.19]
[1725738913500,0.19,54460.0,54449.0,0.22346321]
[1725738914200,0.19,54460.0,54456.0,0.091821]
[1725738915406,0.192,54460.0,54456.0,0.091821]
[1725738916102,0.002,54460.0,54457.0,0.091819]
[1725738916301,0.002,54460.0,54459.0,0.281816]
[1725738917697,0.003,54460.0,54459.0,0.281816]
[1725738918498,0.091805,54466.0,54461.0,0.091812]
[1725738918706,0.091805,54466.0,54462.0,0.09181]
[1725738919009,0.0486,54471.0,54459.0,0.19]
[1725738919319,0.140397,54471.0,54463.0,0.19]
[1725738920002,0.006,54466.0,54463.0,0.19]
[1725738920706,0.012,54466.0,54465.0,0.091806]
[1725738921208,0.012,54466.0,54452.0,0.19]
[1725738921504,0.091813,54462.0,54452.0,0.19]
[1725738921709,0.091813,54462.0,54458.0,0.091817]
[1725738922700,0.092813,54462.0,54458.0,0.091817]
[1725738923413,0.091813,54462.0,54459.0,0.091816]
[1725738924913,0.092813,54462.0,54459.0,0.091816]
[1725738925104,0.092813,54462.0,54459.0,0.092816]
[1725738925810,0.001,54462.0,54461.0,0.091813]
[1725738927303,0.003,54462.0,54461.0,0.091813]
[1725738928010,0.003,54462.0,54452.0,0.05455359]
[1725738928011,0.096813,54462.0,54452.0,0.05455359]
[1725738928209,0.143213,54462.0,54458.0,0.091816]
[1725738928415,0.143213,54462.0,54459.0,0.091816]
[1725738928717,0.0455,54461.0,54459.0,0.091816]
[1725738929012,0.091828,54452.0,54451.0,0.091829]
[1725738929209,0.19,54456.0,54454.0,0.091824]
[1725738929412,0.281822,54456.0,54454.0,0.091824]
[1725738930202,0.091826,54453.0,54452.0,0.002]
[1725738930408,0.281826,54453.0,54452.0,0.002]
[1725738931011,0.281826,54453.0,54452.0,0.001]
[1725738931219,0.281826,54453.0,54451.0,0.09183]
[1725738931719,0.281826,54453.0,54452.0,0.091828]
[1725738932022,0.286826,54453.0,54452.0,0.091828]
[1725738932405,0.284826,54453.0,54452.0,0.091828]
[1725738932606,0.193,54453.0,54448.0,0.091834]
[1725738932910,0.19,54449.0,54448.0,0.091834]
[1725738933918,0.281834,54449.0,54448.0,0.091834]
[1725738934421,0.281834,54449.0,54448.0,0.14738759]
[1725738934723,0.281834,54449.0,54448.0,0.14838759]
[1725738935410,0.281834,54449.0,54448.0,0.093834]
[1725738937420,0.281834,54449.0,54448.0,0.16683353]
[1725738937721,0.281834,54449.0,54448.0,0.07499953]
[1725738940118,0.281834,54449.0,54448.0,0.002]
[1725738940511,0.373668,54449.0,54448.0,0.002]
[1725738941414,0.373668,54449.0,54448.0,0.001]
[1725738941620,0.091843,54444.0,54442.0,0.091845]
[1725738942530,0.091843,54443.0,54442.0,0.1244629]
[1725738943326,0.091843,54443.0,54442.0,0.1254629]
[1725738943826,0.091843,54443.0,54442.0,0.1264629]
[1725738946322,0.1398,54448.0,54445.0,0.091839]
[1725738946323,0.091838,54446.0,54445.0,0.091839]
[1725738947725,0.094838,54446.0,54445.0,0.091839]
[1725738948828,0.096838,54446.0,54445.0,0.16483853]
[1725738950235,0.005,54446.0,54445.0,0.16483853]
[1725738950531,0.005,54446.0,54445.0,0.091839]
[1725738954430,0.005,54446.0,54445.0,0.18308842]
[1725738955529,0.005,54446.0,54445.0,0.32304274]
[1725738955920,0.005,54446.0,54445.0,0.091839]
[1725738957931,0.096838,54446.0,54445.0,0.091839]
[1725738958436,0.091843,54443.0,54442.0,0.0326179]
[1725738958637,0.091845,54442.0,54441.0,0.091846]
[1725738959837,0.091845,54442.0,54441.0,0.092846]
[1725738960332,0.090845,54442.0,54441.0,0.092846]
[1725738961123,0.090845,54442.0,54441.0,0.093846]
[1725738961726,0.090845,54442.0,54441.0,0.002]
[1725738961925,0.280845,54442.0,54441.0,0.002]
[1725738962426,0.090845,54442.0,54441.0,0.002]
[1725738963034,0.090845,54442.0,54441.0,0.14196608]
[1725738963225,0.090845,54442.0,54441.0,0.34331238]
[1725738968239,0.090845,54442.0,54441.0,0.25146538]
[1725738968240,0.280845,54442.0,54441.0,0.25146538]
[1725738968536,0.280845,54442.0,54441.0,0.34331238]
[1725738969640,0.280845,54442.0,54441.0,0.23381308]
[1725738970948,0.280845,54442.0,54441.0,0.16701836]
[1725738972239,0.280845,54442.0,54441.0,0.093847]
[1725738973846,0.280845,54442.0,54441.0,0.002]
[1725738974441,0.280845,54442.0,54441.0,0.05688046]
[1725738975140,0.280845,54442.0,54441.0,0.05588046]
[1725738975347,0.094845,54442.0,54441.0,0.092847]
[1725738976139,0.099845,54442.0,54441.0,0.091847]
[1725738976340,0.009,54442.0,54441.0,0.091847]
[1725738977943,0.24489369,54443.0,54442.0,0.091845]
[1725738978142,0.24489369,54443.0,54442.0,0.341558]
[1725738978939,0.24489369,54443.0,54442.0,0.249713]
[1725738979349,0.091844,54443.0,54442.0,0.23280964]
[1725738980352,0.091844,54443.0,54442.0,0.23180964]
[1725738980845,0.092844,54443.0,54442.0,0.23180964]
[1725738981054,0.092844,54443.0,54442.0,0.26455014]
[1725738982446,0.001,54443.0,54442.0,0.26455014]
[1725738982667,0.0482,54447.0,54446.0,0.091838]
[1725738982855,0.140037,54447.0,54446.0,0.23180264]
[1725738983152,0.140037,54447.0,54446.0,0.32323189]
[1725738984047,0.140037,54447.0,54446.0,0.23180264]
[1725738985045,0.140037,54447.0,54446.0,0.091838]
[1725738985253,0.145037,54447.0,54446.0,0.091838]
[1725738985851,0.151037,54447.0,54446.0,0.092838]
[1725738986849,0.102837,54447.0,54446.0,0.092838]
[1725738987057,0.01,54447.0,54446.0,1.335676]
[1725738987553,0.01,54447.0,54446.0,1.39052569]
[1725738987944,0.01,54447.0,54446.0,1.435676]
[1725738989350,0.01,54447.0,54446.0,1.49050174]
[1725738990056,0.01,54447.0,54446.0,1.58050174]
[1725738990549,0.01,54447.0,54446.0,1.525676]
[1725738990952,0.01,54447.0,54446.0,0.925676]
[1725738991261,0.01,54447.0,54446.0,1.525676]
[1725738991646,0.01,54447.0,54446.0,0.925676]
[1725738991843,0.01,54447.0,54446.0,1.525676]
[1725738994553,0.01,54447.0,54446.0,0.092838]
[1725738994757,0.01,54447.0,54446.0,0.14764555]
[1725738999761,0.01,54447.0,54446.0,0.092838]
[1725739000150,0.01,54447.0,54446.0,0.2327884]
[1725739002262,0.01,54447.0,54446.0,0.4227884]
[1725739003261,0.01,54447.0,54446.0,0.2327884]
[1725739008161,0.01,54447.0,54446.0,0.092838]
[1725739013666,0.11,54447.0,54446.0,0.092838]
[1725739013969,0.201837,54447.0,54446.0,0.092838]
[1725739014761,0.201837,54447.0,54446.0,0.001]
[1725739015965,0.201837,54447.0,54446.0,0.092838]
[1725739015966,0.291837,54447.0,54446.0,0.092838]
[1725739021166,0.01,54447.0,54446.0,0.092838]
[1725739022170,0.01,54447.0,54446.0,0.14765382]
[1725739026068,0.01,54447.0,54446.0,0.23949182]
[1725739026375,0.01,54447.0,54446.0,1.40876376]
[1725739026582,0.01,54447.0,54446.0,1.335676]
[1725739029370,0.01,54447.0,54446.0,1.40875064]
[1725739029875,0.01,54447.0,54446.0,0.16591264]
[1725739030282,0.01,54447.0,54446.0,0.092838]
[1725739033476,0.01,54447.0,54446.0,0.001]
[1725739033787,0.101837,54447.0,54446.0,0.001]
[1725739035198,0.101837,54447.0,54446.0,0.092838]
[1725739038380,0.101837,54447.0,54446.0,0.14765155]
[1725739039882,0.101837,54447.0,54446.0,0.05581355]
[1725739040891,0.101837,54447.0,54446.0,0.001]
[1725739042089,0.201837,54447.0,54446.0,0.001]
[1725739055702,0.201837,54447.0,54446.0,0.092838]
[1725739056799,0.201837,54447.0,54446.0,0.001]
[1725739057095,0.201837,54447.0,54446.0,0.092838]
[1725739059196,0.201837,54447.0,54446.0,0.001]
[1725739059392,0.091843,54443.0,54442.0,0.0327405]
[1725739059591,0.091847,54441.0,54440.0,0.14666155]
[1725739060498,0.091847,54441.0,54440.0,0.091848]
[1725739061300,0.090847,54441.0,54440.0,0.091848]
[1725739062094,0.094847,54441.0,54440.0,0.091848]
[1725739068907,0.094847,54441.0,54440.0,0.16494367]
[1725739075504,0.094847,54441.0,54440.0,0.14666381]
[1725739082709,0.004,54441.0,54440.0,0.091848]
[1725739090822,0.004,54441.0,54440.0,0.16494367]
[1725739092920,0.004,54441.0,54440.0,0.091848]
[1725739099519,0.095847,54441.0,54440.0,0.091848]
[1725739100230,0.09185,54439.0,54438.0,0.03307566]
[1725739100429,0.095847,54441.0,54437.0,0.091853]
[1725739101318,0.091847,54441.0,54437.0,0.091853]
[1725739101523,0.001,54439.0,54437.0,0.091853]
[1725739101833,0.091852,54438.0,54437.0,0.12466942]
[1725739102029,0.089852,54438.0,54437.0,0.12466942]
[1725739102625,0.089852,54438.0,54437.0,0.12766942]
[1725739112748,0.089852,54438.0,54437.0,0.26764026]
[1725739115741,0.089852,54438.0,54437.0,0.26764016]
[1725739118241,0.0464,54445.0,54437.0,0.27578716]
[1725739118443,0.091837,54447.0,54446.0,0.091837]
[1725739121350,0.101837,54447.0,54446.0,0.091837]
[1725739121555,0.108837,54447.0,54446.0,0.091837]
[1725739123149,0.108837,54447.0,54446.0,0.12507971]
[1725739123543,0.208837,54447.0,54446.0,0.12507971]
[1725739126552,0.22606781,54447.0,54446.0,0.12507971]
[1725739126749,0.208837,54447.0,54446.0,0.12507971]
[1725739127754,0.198837,54447.0,54446.0,0.12507971]
[1725739128146,0.191837,54447.0,54446.0,0.12607971]
[1725739128753,0.192837,54447.0,54446.0,0.12607971]
[1725739133754,0.001,54447.0,54446.0,0.22607971]
[1725739137159,0.001,54447.0,54446.0,0.12607971]
[1725739137664,0.1,54451.0,54447.0,0.091836]
[1725739138965,0.091836,54448.0,54447.0,0.091836]
[1725739140457,0.091836,54448.0,54447.0,0.094836]
[1725739140857,0.092836,54448.0,54447.0,0.091836]
[1725739141064,0.092836,54448.0,54447.0,0.094836]
[1725739147263,0.192836,54448.0,54447.0,0.094836]
[1725739147790,0.192836,54448.0,54447.0,0.003]
[1725739148369,0.21006718,54448.0,54447.0,0.003]
[1725739148569,0.192836,54448.0,54447.0,0.003]
[1725739150181,0.088838,54446.0,54445.0,0.09184]
[1725739151170,0.087838,54446.0,54445.0,0.09184]
[1725739151878,0.089838,54446.0,54445.0,0.09184]
[1725739152271,0.089838,54446.0,54445.0,0.09284]
[1725739153973,0.087838,54446.0,54445.0,0.09284]
[1725739154274,0.087838,54446.0,54445.0,0.09184]
[1725739154874,0.088838,54446.0,54445.0,0.09184]
[1725739159983,0.09184,54445.0,54444.0,0.05488404]
[1725739160181,0.19184,54445.0,54444.0,0.05488404]
[1725739160475,0.091842,54444.0,54443.0,0.05488404]
[1725739161678,0.089842,54444.0,54443.0,0.05488404]
[1725739162284,0.091842,54444.0,54443.0,0.05488404]
[1725739162791,0.091843,54443.0,54442.0,0.05488404]
[1725739162982,0.191843,54443.0,54442.0,0.05488404]
[1725739163287,0.091847,54441.0,54440.0,0.16504111]
[1725739166187,0.092847,54441.0,54440.0,0.091848]
[1725739173086,0.092847,54441.0,54440.0,0.18333938]
[1725739174590,0.092847,54441.0,54440.0,0.32330733]
[1725739181196,0.092847,54441.0,54440.0,0.091848]
[1725739184504,0.09185,54439.0,54438.0,0.03357861]
[1725739184797,0.001,54441.0,54437.0,0.18334438]
[1725739184798,0.091852,54438.0,54437.0,0.18334438]
[1725739184988,0.091852,54438.0,54437.0,0.32331231]
[1725739185992,0.091852,54438.0,54437.0,0.23182093]
[1725739186299,0.091852,54438.0,54437.0,0.26480194]
[1725739187011,0.092852,54438.0,54437.0,0.26480194]
[1725739188206,0.092852,54438.0,54437.0,0.12483401]
[1725739194305,0.092852,54438.0,54437.0,0.03298101]
[1725739194501,0.091853,54437.0,54436.0,0.091854]
[1725739195610,0.092853,54437.0,54436.0,0.091854]
[1725739200503,0.092853,54437.0,54436.0,0.090354]
[1725739201307,0.192853,54437.0,54436.0,0.090354]
[1725739203099,0.192853,54437.0,54436.0,0.23033089]
[1725739203296,0.192853,54437.0,54436.0,0.13997689]
[1725739203499,0.192853,54437.0,54420.0,0.12799478]
[1725739203500,0.091862,54432.0,54420.0,0.12799478]
[1725739203713,0.183724,54432.0,54431.0,0.05492177]
[1725739203899,0.183724,54432.0,54423.0,0.09153628]
[1725739203900,0.001,54437.0,54430.0,0.07322903]
[1725739204203,0.1,54433.0,54429.0,0.05492354]
[1725739204404,0.091865,54430.0,54429.0,0.05492354]
[1725739204600,0.001,54432.0,54429.0,0.05492354]
[1725739204795,0.002,54432.0,54431.0,0.05485623]
[1725739204999,0.093862,54432.0,54431.0,0.05485623]
[1725739205195,0.002,54432.0,54430.0,0.15485623]
[1725739205408,0.002,54432.0,54430.0,0.1]
[1725739206114,0.002,54432.0,54430.0,0.17322903]
[1725739206407,0.091859,54434.0,54431.0,0.091864]
[1725739206608,0.091859,54434.0,54433.0,0.05481434]
[1725739207013,0.09186,54433.0,54432.0,0.05481434]
[1725739207202,0.092862,54432.0,54431.0,0.05481434]
[1725739207712,0.1,54433.0,54426.0,0.11962903]
[1725739207713,0.091867,54429.0,54426.0,0.11962903]
[1725739208211,0.091869,54428.0,54427.0,0.09187]
[1725739210316,0.090869,54428.0,54427.0,0.09187]
[1725739210812,0.090869,54428.0,54427.0,0.09587]
[1725739211014,0.090869,54428.0,54427.0,0.09687]
[1725739212401,0.090869,54428.0,54427.0,0.005]
[1725739214507,0.091853,54438.0,54432.0,0.091861]
[1725739214707,0.091853,54438.0,54432.0,0.281861]
[1725739214919,0.091853,54438.0,54427.0,0.005]
[1725739214920,0.091845,54442.0,54436.0,0.19]
[1725739215208,0.091842,54444.0,54443.0,0.091843]
[1725739215419,0.091835,54448.0,54447.0,0.091834]
[1725739215710,0.091835,54448.0,54443.0,0.19]
[1725739215711,0.0486,54457.0,54438.0,0.0455]
[1725739215911,0.091825,54454.0,54453.0,0.19]
[1725739216903,0.091825,54454.0,54450.0,0.09183]
[1725739216904,0.19,54456.0,54445.0,0.19]
[1725739217101,0.19,54456.0,54445.0,0.2351]
[1725739217505,0.091829,54452.0,54447.0,0.091835]
[1725739218104,0.091829,54452.0,54448.0,0.05478607]
[1725739218611,0.091829,54452.0,54450.0,0.091831]
[1725739219415,0.097822,54456.0,54451.0,0.09183]
[1725739219611,0.091822,54456.0,54454.0,0.19]
[1725739219812,0.091804,54467.0,54454.0,0.19]
[1725739220021,0.091804,54467.0,54463.0,0.19]
[1725739220520,0.19,54466.0,54456.0,0.29088607]
[1725739220827,0.09181,54463.0,54460.0,0.19]
[1725739221322,0.09181,54463.0,54460.0,0.281814]
[1725739222110,0.09181,54463.0,54461.0,0.091813]
[1725739222612,0.028,54467.0,54463.0,0.092809]
[1725739222914,0.014,54467.0,54466.0,0.19]
[1725739223114,0.091802,54468.0,54466.0,0.19]
[1725739223428,0.1455,54473.0,54466.0,0.19]
[1725739223429,0.237294,54473.0,54466.0,0.19]
[1725739223614,0.237294,54473.0,54471.0,0.19]
[1725739223615,0.091795,54472.0,54471.0,0.19]
[1725739225830,0.105795,54472.0,54471.0,0.191]
[1725739226318,0.105795,54472.0,54471.0,0.19]
[1725739226620,0.119795,54472.0,54471.0,0.191]
[1725739229217,0.119795,54472.0,54471.0,0.282796]
[1725739231128,0.119795,54472.0,54471.0,0.001]
[1725739231315,0.76235,54472.0,54471.0,0.001]
[1725739231624,0.091818,54458.0,54457.0,0.321]
[1725739232523,0.091818,54458.0,54457.0,0.511]
[1725739233225,0.097818,54458.0,54457.0,0.512]
[1725739233430,0.105818,54458.0,54457.0,0.512]
[1725739233818,0.105818,54458.0,54457.0,0.60382]
[1725739236123,0.014,54458.0,54457.0,0.60382]
[1725739237117,0.014,54458.0,54457.0,0.28282]
[1725739243326,0.014,54458.0,54457.0,1.52552]
[1725739243830,0.091804,54466.0,54465.0,0.091806]
[1725739244136,0.091804,54466.0,54465.0,0.281806]
[1725739244634,0.091804,54466.0,54465.0,0.091806]
[1725739245235,0.091804,54466.0,54465.0,0.002]
[1725739245236,0.118804,54466.0,54465.0,0.002]
[1725739247928,0.118804,54466.0,54465.0,0.093806]
[1725739251933,0.027,54466.0,54465.0,0.283806]
[1725739252135,0.013,54466.0,54465.0,0.282806]
[1725739252331,0.091799,54469.0,54468.0,0.091801]
[1725739253537,0.092799,54469.0,54468.0,0.091801]
[1725739254533,0.095799,54469.0,54468.0,0.091801]
[1725739255236,0.1521526,54469.0,54468.0,0.091801]
[1725739256234,0.1521526,54469.0,54468.0,0.281801]
[1725739257740,0.0603536,54469.0,54468.0,0.281801]
[1725739257937,0.06035131,54469.0,54468.0,0.281801]
[1725739258338,0.06035131,54469.0,54468.0,0.31558615]
[1725739259035,0.05635131,54469.0,54468.0,0.32058615]
[1725739260836,0.05635131,54469.0,54468.0,0.096801]
[1725739261232,0.14815031,54469.0,54468.0,0.096801]
[1725739261645,0.14815016,54469.0,54468.0,0.096801]
[1725739262645,0.14815016,54469.0,54468.0,0.092801]
[1725739263241,0.091799,54469.0,54468.0,0.092801]
[1725739263641,0.091799,54469.0,54468.0,0.091801]
[1725739263841,0.093799,54469.0,54468.0,0.091801]
[1725739266344,0.093799,54469.0,54464.0,0.091807]
[1725739266345,0.091806,54465.0,54464.0,0.091807]
[1725739266536,0.091813,54463.0,54462.0,0.091811]
[1725739267639,0.089813,54463.0,54462.0,0.091811]
[1725739268743,0.090813,54463.0,54462.0,0.098811]
[1725739269146,0.089813,54463.0,54462.0,0.091811]
[1725739269448,0.089813,54463.0,54462.0,0.097811]
[1725739269449,0.090813,54463.0,54462.0,0.097811]
[1725739270541,0.090813,54463.0,54462.0,0.100811]
[1725739273659,0.090813,54463.0,54462.0,0.009]
[1725739274152,0.090813,54463.0,54462.0,0.06377985]
[1725739274652,0.090813,54463.0,54462.0,0.15559085]
[1725739275648,0.090813,54463.0,54462.0,0.100811]
[1725739275854,0.090813,54463.0,54462.0,0.15559374]
[1725739276248,0.090813,54463.0,54462.0,0.15559731]
[1725739277152,0.182626,54463.0,54462.0,0.06378631]
[1725739277357,0.372626,54463.0,54462.0,0.009]
[1725739278747,0.371626,54463.0,54462.0,0.003]
[1725739278949,0.374626,54463.0,54462.0,0.003]
[1725739279547,0.466439,54463.0,54462.0,0.003]
[1725739279754,0.091828,54452.0,54450.0,0.03342236]
[1725739279960,0.09183,54451.0,54450.0,0.03342236]
[1725739280264,0.189,54454.0,54445.0,0.091839]
[1725739280769,0.091825,54455.0,54447.0,0.19]
[1725739280967,0.001,54452.0,54451.0,0.007]
[1725739281760,0.002,54452.0,54451.0,0.017]
[1725739282064,0.093828,54452.0,54451.0,0.017]
[1725739283059,0.092828,54452.0,54451.0,0.01]
[1725739284665,0.092828,54452.0,54451.0,0.013]
[1725739284666,0.093828,54452.0,54451.0,0.013]
[1725739285672,0.185656,54452.0,54451.0,0.06773418]
[1725739286171,0.093828,54452.0,54451.0,0.013]
[1725739286367,0.185656,54452.0,54451.0,0.013]
[1725739286878,0.189656,54452.0,54451.0,0.011]
[1725739287862,1.341616,54452.0,54451.0,0.001]
[1725739288866,1.433444,54452.0,54451.0,0.001]
[1725739289174,1.341616,54452.0,54451.0,0.001]
[1725739289672,1.4672008,54452.0,54451.0,0.001]
[1725739289870,0.7753728,54452.0,54451.0,0.001]
[1725739292876,0.8672008,54452.0,54451.0,0.001]
[1725739293477,0.7753728,54452.0,54451.0,0.001]
[1725739293874,1.4672008,54452.0,54451.0,0.001]
[1725739294371,0.091847,54441.0,54440.0,0.05473418]
[1725739294570,0.091848,54440.0,54439.0,0.05473418]
[1725739295481,0.080848,54440.0,54439.0,0.05473418]
[1725739296485,0.075848,54440.0,54439.0,0.05473418]
[1725739296679,0.076848,54440.0,54439.0,0.06673418]
[1725739297185,0.076848,54440.0,54439.0,0.07173418]
[1725739297186,0.077848,54440.0,54439.0,0.07173418]
[1725739299973,0.077848,54440.0,54439.0,0.017]
[1725739306279,0.359696,54440.0,54439.0,0.017]
[1725739307287,0.361696,54440.0,54439.0,0.012]
[1725739307789,0.091857,54435.0,54434.0,0.091858]
[1725739308895,0.092857,54435.0,54434.0,0.094858]
[1725739309386,0.092857,54435.0,54434.0,0.003]
[1725739310278,0.140557,54435.0,54434.0,0.003]
[1725739310680,0.142557,54435.0,54434.0,0.003]
[1725739311180,0.234414,54435.0,54434.0,0.003]
[1725739311378,0.141557,54435.0,54434.0,0.001]
[1725739311579,0.190657,54435.0,54434.0,0.001]
[1725739312388,0.091867,54429.0,54428.0,0.091868]
[1725739314487,0.092867,54429.0,54428.0,0.094868]
[1725739316791,0.925934,54429.0,54428.0,0.003]
[1725739318581,0.091875,54424.0,54423.0,0.0453]
[1725739318792,0.089875,54424.0,54423.0,0.0453]
[1725739319781,0.090875,54424.0,54423.0,0.0453]
[1725739320789,0.091875,54424.0,54423.0,0.0463]
[1725739325895,0.002,54424.0,54423.0,0.0463]
[1725739326092,0.002,54424.0,54423.0,0.21140603]
[1725739326496,0.002,54424.0,54423.0,0.138177]
[1725739326888,0.002,54424.0,54423.0,1.36264603]
[1725739327197,0.091848,54441.0,54433.0,0.09186]
[1725739327198,0.091857,54435.0,54433.0,0.09186]
[1725739327401,0.091857,54435.0,54434.0,0.091858]
[1725739328393,0.095857,54435.0,54434.0,0.091858]
[1725739328900,0.096857,54435.0,54434.0,0.091858]
[1725739329399,0.102857,54435.0,54434.0,0.091858]
[1725739329591,0.091861,54433.0,54431.0,0.091862]
[1725739329793,0.091865,54430.0,54429.0,0.05469615]
[1725739329995,0.091865,54430.0,54428.0,0.05469615]
[1725739330500,0.091865,54430.0,54427.0,0.091869]
[1725739331289,0.091865,54430.0,54429.0,0.001]
[1725739331894,0.093865,54430.0,54429.0,0.001]
[1725739332101,0.093865,54430.0,54428.0,0.091869]
[1725739333397,0.092865,54430.0,54428.0,0.091869]
[1725739334713,0.092865,54430.0,54429.0,0.001]
[1725739335095,0.092865,54430.0,54428.0,0.091869]
[1725739335297,0.092865,54430.0,54428.0,0.093869]
[1725739335899,0.093865,54430.0,54429.0,0.001]
[1725739337301,0.093865,54430.0,54428.0,0.091869]
[1725739337505,0.091867,54429.0,54428.0,0.093869]
[1725739338007,0.090867,54429.0,54428.0,0.091869]
[1725739338708,0.091867,54429.0,54428.0,0.091869]
[1725739338905,0.091867,54429.0,54428.0,0.093869]
[1725739355722,0.091867,54429.0,54428.0,0.002]
[1725739355723,0.183734,54429.0,54428.0,0.002]
[1725739356116,0.09188,54421.0,54411.0,0.0456]
[1725739356426,0.1,54419.0,54418.0,0.091885]
[1725739358315,0.1,54419.0,54418.0,0.092885]
[1725739358512,0.101,54419.0,54418.0,0.092885]
[1725739359118,0.102,54419.0,54418.0,0.093885]
[1725739359419,0.002,54419.0,54418.0,0.093885]
[1725739360618,0.09188,54421.0,54418.0,0.1420227]
[1725739360811,0.09188,54421.0,54420.0,0.09154948]
[1725739361324,0.09188,54421.0,54419.0,0.09154948]
[1725739362031,0.09288,54421.0,54420.0,0.091882]
[1725739362325,0.09188,54421.0,54420.0,0.091882]
[1725739362517,0.09388,54421.0,54420.0,0.091882]
[1725739363120,0.09288,54421.0,54420.0,0.091882]
[1725739363321,0.09288,54421.0,54420.0,0.093882]
[1725739364034,0.09288,54421.0,54420.0,0.096882]
[1725739372430,1.24416,54421.0,54413.0,0.091894]
[1725739372639,0.191896,54414.0,54413.0,0.091894]
[1725739373728,0.191896,54414.0,54413.0,0.095894]
[1725739374322,0.192896,54414.0,54413.0,0.095894]
[1725739375631,0.192896,54414.0,54413.0,0.16909868]
[1725739376038,0.092896,54414.0,54413.0,0.16909868]
[1725739376236,0.092896,54414.0,54413.0,0.095894]
[1725739376737,0.192896,54414.0,54413.0,0.004]
[1725739377838,0.192896,54414.0,54413.0,0.095894]
[1725739380225,0.192896,54414.0,54413.0,0.004]
[1725739380430,0.284792,54414.0,54413.0,0.004]
[1725739380840,0.284792,54414.0,54413.0,0.0589245]
[1725739381034,0.284792,54414.0,54413.0,0.004]
[1725739381839,0.284792,54414.0,54413.0,0.002]
[1725739383738,0.288792,54414.0,54413.0,0.002]
[1725739383936,0.091903,54408.0,54406.0,0.091905]
[1725739384133,0.1,54407.0,54406.0,0.091905]
[1725739384431,0.191904,54407.0,54406.0,0.091905]
[1725739387342,0.192904,54407.0,54406.0,0.091905]
[1725739394241,0.091906,54406.0,54405.0,0.03342646]
[1725739394437,0.091907,54405.0,54404.0,0.091908]
[1725739394651,0.191907,54405.0,54404.0,0.091908]
[1725739395242,0.091913,54402.0,54401.0,0.091914]
[1725739395436,0.191913,54402.0,54401.0,0.091914]
[1725739397545,0.192913,54402.0,54401.0,0.091914]
[1725739398053,0.193913,54402.0,54401.0,0.091914]
[1725739399949,0.191913,54402.0,54401.0,0.091914]
[1725739400145,0.192913,54402.0,54401.0,0.091914]
[1725739400547,0.191913,54402.0,54401.0,0.091914]
[1725739401857,0.091907,54405.0,54404.0,0.091908]
[1725739402045,0.091907,54405.0,54404.0,0.16513471]
[1725739402241,0.091907,54405.0,54404.0,0.091908]
[1725739402940,0.1,54406.0,54404.0,0.091908]
[1725739402941,0.0467,54414.0,54404.0,1.243349]
[1725739403152,0.091887,54418.0,54415.0,0.091889]
[1725739403353,0.1,54417.0,54414.0,0.07320285]
[1725739403545,0.1,54417.0,54416.0,0.16509185]
[1725739403948,0.191887,54417.0,54416.0,0.16509185]
[1725739404549,0.191887,54417.0,54416.0,0.091889]
[1725739404746,0.191887,54417.0,54416.0,0.16509185]
[1725739404948,0.191887,54417.0,54416.0,0.091889]
[1725739406051,0.282887,54417.0,54416.0,0.091889]
[1725739413461,0.282887,54417.0,54416.0,0.14675594]
[1725739415665,0.282887,54417.0,54416.0,0.05486694]
[1725739415866,0.091889,54416.0,54415.0,0.05486694]
[1725739416164,0.281889,54416.0,54415.0,0.05486694]
[1725739416568,0.281889,54416.0,54415.0,0.14675794]
[1725739419465,0.281889,54416.0,54415.0,0.091891]
[1725739420262,0.091891,54415.0,54414.0,0.05486694]
[1725739420463,0.091892,54414.0,54412.0,0.05486694]
[1725739420669,0.091892,54414.0,54411.0,0.05486694]
[1725739420670,0.183792,54412.0,54411.0,0.05486694]
[1725739420971,0.091904,54408.0,54406.0,0.091906]
[1725739421272,0.19,54407.0,54406.0,0.091906]
[1725739422672,0.282904,54407.0,54406.0,0.091906]
[1725739427878,0.23692243,54407.0,54406.0,0.091906]
[1725739428074,0.192904,54407.0,54406.0,0.091906]
[1725739428665,0.091909,54404.0,54403.0,0.091911]
[1725739428866,0.191909,54404.0,54403.0,0.091911]